bitfinex-derivatives/quotes_ETHF0:USTF0_20210111
["timestamp","ask_amount","ask_price","bid_price","bid_amount"]
[1610406881605,4.00959,1073.9,1073.4,4.00959]
[1610406881905,6.17329,1073.9,1073.4,4.00959]
[1610406884909,6.17329,1073.9,1072.5,64.9738]
[1610406885110,6.17329,1073.9,1072.2,1.9556]
[1610406885309,6.17329,1073.9,1071.1,6.0642]
[1610406885310,6.17329,1073.9,1071.6,77.4589]
[1610406885509,4.00959,1073.3,1072.8,4.00959]
[1610406885922,4.00959,1073.3,1071.1,6.0642]
[1610406886111,4.00959,1073.3,1071.3,56.3224]
[1610406886309,4.00959,1073.3,1071.3,57.9489]
[1610406887515,4.00959,1072.0,1071.3,61.95849]
[1610406887711,4.00959,1072.0,1071.3,5.63609]
[1610406887912,55.7729,1072.7,1071.3,5.63609]
[1610406889516,4.00959,1072.0,1071.6,4.00959]
[1610406890214,6.0715,1072.8,1071.6,4.00959]
[1610406890415,6.0715,1072.8,1071.6,6.29599]
[1610406890631,2.1977,1072.9,1071.6,6.29599]
[1610406891016,12.273,1073.3,1071.6,6.29599]
[1610406891717,4.00959,1072.4,1072.0,4.00959]
[1610406892017,1.5527,1073.1,1072.0,5.73979]
[1610406892218,1.5527,1073.1,1072.0,1.7302]
[1610406893616,4.00959,1072.2,1072.0,5.73979]
[1610406894219,1.5527,1073.1,1072.0,5.73979]
[1610406895622,4.00959,1072.3,1072.0,5.73979]
[1610406895822,1.5527,1073.1,1072.0,5.73979]
[1610406896624,12.273,1073.3,1072.0,5.73979]
[1610406896825,1.8041,1073.4,1072.0,5.73979]
[1610406897027,100.77464881,1073.9,1072.0,5.73979]
[1610406897428,2.1637,1073.9,1072.0,5.73979]
[1610406897727,4.00959,1073.5,1072.0,1.7302]
[1610406897927,5.54689,1073.5,1071.9,74.9049]
[1610406898527,5.54689,1073.5,1071.3,1.6265]
[1610406898931,5.54689,1073.5,1071.1,52.2748]
[1610406899531,5.54689,1073.5,1073.2,4.00959]
[1610406900234,1.5373,1073.5,1073.2,4.00959]
[1610406900732,6.3323,1074.2,1073.2,4.00959]
[1610406901633,4.00959,1073.5,1073.2,4.00959]
[1610406902433,6.49579,1073.5,1072.6,1.9366]
[1610406903634,2.4862,1073.5,1072.7,4.00959]
[1610406905735,4.00959,1073.2,1073.0,4.00959]
[1610406905936,2.4862,1073.5,1073.0,4.00959]
[1610406907539,55.7344,1073.8,1073.0,4.00959]
[1610406907940,55.7344,1073.8,1072.3,2.2626]
[1610406909141,55.7344,1073.8,1071.6,77.2181]
[1610406909743,55.7344,1073.8,1071.0,2.4775]
[1610406909744,4.00959,1072.5,1072.3,4.00959]
[1610406910142,0.95879,1072.8,1072.3,4.00959]
[1610406910347,0.95879,1072.8,1071.2,55.2812]
[1610406910743,0.95879,1072.8,1069.0,6.4929]
[1610406910744,0.95879,1072.8,1069.0,36.4929]
[1610406910943,58.8128,1072.6,1070.1,57.9377]
[1610406911242,0.95879,1072.8,1070.1,33.402]
[1610406911444,0.95879,1072.8,1070.8,30.0]
[1610406911647,0.95879,1072.8,1072.7,4.00959]
[1610406912049,0.95879,1072.8,1072.2,67.627]
[1610406912443,2.1001,1073.1,1072.2,67.627]
[1610406913444,1.7403,1073.8,1072.2,67.627]
[1610406913746,2.4776,1073.4,1073.0,4.00959]
[1610406915049,2.4776,1073.4,1072.4,2.1918]
[1610406915747,4.00959,1073.1,1073.0,4.00959]
[1610406916047,2.4776,1073.4,1073.0,4.00959]
[1610406916747,2.4776,1073.4,1072.4,2.1918]
[1610406917747,2.4776,1073.4,1073.3,4.00959]
[1610406918846,4.00959,1073.6,1073.3,4.00959]
[1610406921350,5.9956,1074.2,1073.3,4.00959]
[1610406921851,4.00959,1073.9,1073.7,4.00959]
[1610406922053,5.99669,1073.9,1072.7,69.416]
[1610406923755,1.9871,1073.9,1073.2,4.00959]
[1610406925755,4.00959,1073.3,1073.2,4.00959]
[1610406926156,5.72499,1073.3,1073.2,4.00959]
[1610406926357,5.72499,1073.3,1072.5,2.1496]
[1610406926557,5.72499,1073.3,1072.0,2.0769]
[1610406926558,30.0,1073.1,1072.0,2.0769]
[1610406926761,68.784,1073.2,1071.6,2.1346]
[1610406926958,68.784,1073.2,1071.3,57.6868]
[1610406927760,4.00959,1072.0,1071.8,4.00959]
[1610406927962,5.79699,1072.0,1071.3,57.6868]
[1610406928261,5.79699,1072.0,1069.7,30.0]
[1610406928562,5.79699,1072.0,1069.5,30.0]
[1610406928861,5.79699,1072.0,1069.8,30.0]
[1610406929063,1.7874,1072.0,1069.8,30.0]
[1610406929263,1.7874,1072.0,1069.8,32.2726]
[1610406929767,1.7874,1072.0,1071.9,4.00959]
[1610406929963,6.1788,1072.6,1071.9,4.00959]
[1610406930163,55.4726,1073.2,1071.9,4.00959]
[1610406930563,1.7154,1073.3,1071.9,4.00959]
[1610406931264,1.9871,1073.9,1071.9,4.00959]
[1610406931766,4.00959,1073.3,1072.9,4.00959]
[1610406932065,5.63399,1073.3,1072.9,4.00959]
[1610406932665,1.6244,1073.3,1072.9,4.00959]
[1610406933767,1.6244,1073.3,1073.2,4.00959]
[1610406935169,12.1457,1074.1,1073.2,4.00959]
[1610406935676,6.202,1074.1,1073.2,4.00959]
[1610406935869,4.00959,1073.9,1073.7,4.00959]
[1610406936371,2.0131,1074.0,1073.7,4.00959]
[1610406937071,2.2584,1074.7,1073.7,4.00959]
[1610406937378,6.4902,1075.1,1073.7,4.00959]
[1610406937680,1.09960502,1075.3,1073.7,67.27219]
[1610406937880,1.09960502,1075.3,1075.1,4.00959]
[1610406939075,1.09960502,1075.3,1073.6,2.2512]
[1610406939279,56.1693,1075.2,1073.6,2.2512]
[1610406939476,61.1403,1074.9,1073.2,1.5958]
[1610406939776,4.00959,1073.7,1073.2,4.00959]
[1610406939978,5.87859,1073.7,1073.2,4.00959]
[1610406941076,1.869,1073.7,1073.2,4.00959]
[1610406941682,2.3017,1074.0,1073.2,4.00959]
[1610406941878,2.3017,1074.0,1073.5,4.00959]
[1610406943782,2.3017,1074.0,1073.8,4.00959]
[1610406944885,2.3017,1074.0,1073.2,2.3106]
[1610406945984,2.3017,1074.0,1073.6,4.00959]
[1610406946184,5.8609,1074.8,1073.6,4.00959]
[1610406947185,5.8609,1074.8,1073.2,63.3443]
[1610406947186,55.3041,1074.5,1073.2,2.3106]
[1610406947387,30.0,1074.4,1072.4,76.6974]
[1610406947789,67.1386,1074.1,1072.7,4.00959]
[1610406947989,67.1386,1074.1,1071.6,53.0538]
[1610406948188,6.0987,1074.0,1071.6,53.0538]
[1610406948788,6.0729,1073.9,1071.6,53.0538]
[1610406948988,6.0729,1073.9,1071.6,83.0538]
[1610406949892,4.00959,1073.4,1073.1,4.00959]
[1610406950690,4.00959,1073.4,1071.6,53.0538]
[1610406951590,2.1769,1073.5,1071.6,83.0538]
[1610406951790,2.1769,1073.5,1073.4,4.00959]
[1610406952392,69.5268,1074.1,1072.6,1.8331]
[1610406952693,69.5268,1074.1,1072.9,2.293]
[1610406952894,2.3882,1074.1,1072.9,2.293]
[1610406953093,6.3286,1074.8,1072.9,60.9765]
[1610406953795,4.00959,1074.5,1073.8,4.00959]
[1610406954195,5.69079,1074.5,1073.8,4.00959]
[1610406954395,1.6812,1074.5,1073.8,4.00959]
[1610406956000,1.6812,1074.5,1074.4,4.00959]
[1610406958609,1.6812,1074.5,1073.6,2.3769]
[1610406959000,1.6812,1074.5,1072.9,78.7844]
[1610406959202,1.9764,1074.5,1072.9,78.7844]
[1610406960002,1.9764,1074.5,1074.2,4.00959]
[1610406961702,1.9764,1074.5,1073.5,76.7423]
[1610406962003,5.98599,1074.5,1074.0,4.00959]
[1610406962203,5.98599,1074.5,1073.5,2.3404]
[1610406962404,5.98599,1074.5,1072.9,80.0843]
[1610406964107,4.00959,1073.0,1072.9,80.0843]
[1610406964308,1.7845,1073.5,1072.9,2.293]
[1610406964607,1.7845,1073.5,1072.8,4.00959]
[1610406966008,4.00959,1072.9,1072.8,4.00959]
[1610406966410,2.3214,1073.1,1072.8,4.00959]
[1610406967110,1.7845,1073.5,1072.8,4.00959]
[1610406968217,1.7845,1073.5,1073.4,4.00959]
[1610406968511,4.00959,1073.9,1073.4,4.00959]
[1610406969813,1.9764,1074.5,1073.4,4.00959]
[1610406970114,4.00959,1074.4,1072.9,1.7065]
[1610406970313,5.56239,1074.4,1072.9,1.7065]
[1610406970918,1.5528,1074.4,1072.9,1.7065]
[1610406971120,1.5528,1074.4,1073.0,64.1193]
[1610406972021,1.5528,1074.4,1074.1,4.00959]
[1610406972224,1.5528,1074.4,1072.9,1.7065]
[1610406972423,1.5528,1074.4,1073.5,76.0055]
[1610406973324,1.5528,1074.4,1072.9,1.7065]
[1610406974123,4.00959,1074.2,1073.8,4.00959]
[1610406976127,1.5528,1074.4,1073.3,56.3973]
[1610406976327,6.1705,1074.8,1073.3,56.3973]
[1610406978027,4.00959,1074.4,1073.9,4.00959]
[1610406978227,5.93299,1074.4,1073.9,4.00959]
[1610406978729,1.9234,1074.4,1073.9,4.00959]
[1610406978927,1.9234,1074.4,1073.9,75.04479]
[1610406980028,1.9234,1074.4,1074.3,4.00959]
[1610406980529,1.6201,1074.9,1074.3,4.00959]
[1610406980729,1.09960502,1075.3,1074.3,4.00959]
[1610406982132,2.3597,1074.8,1074.7,4.00959]
[1610406986539,2.3597,1074.8,1073.7,2.0057]
[1610406986740,2.3597,1074.8,1073.7,54.2613]
[1610406987242,1.09960502,1075.3,1073.7,54.2613]
[1610406988043,1.09960502,1075.3,1074.7,4.00959]
[1610406990043,1.09960502,1075.3,1075.1,4.00959]
[1610406994052,4.00959,1075.2,1075.1,4.00959]
[1610406994251,4.00959,1075.2,1073.2,2.4483]
[1610406994452,5.69889,1075.2,1073.3,66.3763]
[1610406994651,5.9048,1075.1,1073.3,66.3763]
[1610406996054,5.9048,1075.1,1073.9,4.00959]
[1610406998153,4.00959,1074.9,1074.6,4.00959]
[1610406998355,1.5685,1074.9,1074.6,4.00959]
[1610406999958,1.5685,1074.9,1074.1,72.3499]
[1610407000158,4.00959,1074.7,1074.4,4.00959]
[1610407001258,1.5685,1074.9,1074.4,4.00959]
[1610407002159,4.00959,1074.5,1074.4,4.00959]
[1610407002462,6.40159,1074.5,1074.4,4.00959]
[1610407002760,2.392,1074.5,1074.4,4.00959]
[1610407003761,2.392,1074.5,1072.9,1.7065]
[1610407003961,2.392,1074.5,1073.6,58.708]
[1610407004161,2.392,1074.5,1074.3,4.00959]
[1610407006163,4.00959,1074.4,1074.3,4.00959]
[1610407006463,2.392,1074.5,1074.3,4.00959]
[1610407007468,1.5685,1074.9,1074.3,4.00959]
[1610407007667,1.6893,1075.2,1074.3,4.00959]
[1610407007867,1.09960502,1075.3,1074.3,4.00959]
[1610407008269,1.09960502,1075.3,1074.7,4.00959]
[1610407010268,4.00959,1074.8,1074.7,4.00959]
[1610407010468,6.45419,1074.8,1074.7,4.00959]
[1610407010768,2.4446,1074.8,1074.7,4.00959]
[1610407015573,2.0442,1074.8,1074.7,4.00959]
[1610407016977,2.0442,1074.8,1074.6,74.4373]
[1610407018279,2.0442,1074.8,1074.7,4.00959]
[1610407020080,2.0442,1074.8,1073.7,64.7234]
[1610407020580,1.09960502,1075.3,1074.7,4.00959]
[1610407022482,1.09960502,1075.3,1074.7,13.19699]
[1610407022684,1.09960502,1075.3,1075.2,4.00959]
[1610407023084,1.09960502,1075.3,1075.2,79.08639]
[1610407028089,2.87060502,1075.3,1075.2,79.08639]
[1610407028291,2.87060502,1075.3,1075.2,4.00959]
[1610407030793,2.87060502,1075.3,1075.2,69.25749]
[1610407032293,2.87060502,1075.3,1075.2,4.00959]
[1610407032693,4.00959,1076.5,1075.6,77.2264]
[1610407032995,6.3736,1076.8,1075.9,53.9624]
[1610407033193,8.8206,1076.8,1075.9,53.9624]
[1610407034396,8.8206,1076.8,1075.2,4.00959]
[1610407034698,8.8206,1076.8,1075.9,57.2539]
[1610407036599,2.447,1076.8,1076.6,4.00959]
[1610407038203,6.4289,1077.6,1076.6,4.00959]
[1610407038401,6.4289,1077.6,1076.1,54.3374]
[1610407038601,8.3012,1077.6,1076.1,54.3374]
[1610407040804,4.00959,1076.9,1076.1,54.3374]
[1610407042004,8.3012,1077.6,1076.1,54.3374]
[1610407042205,1.8723,1077.6,1076.1,54.3374]
[1610407042705,4.00959,1077.3,1077.1,4.00959]
[1610407042904,6.26849,1077.3,1077.1,4.00959]
[1610407044208,6.26849,1077.3,1076.8,51.9611]
[1610407044608,2.2589,1077.3,1076.8,51.9611]
[1610407045011,2.2589,1077.3,1075.1,1.6731]
[1610407045210,2.2589,1077.3,1075.4,76.5512]
[1610407046711,2.2589,1077.3,1076.7,4.00959]
[1610407048213,6.4014,1077.5,1076.7,4.00959]
[1610407048616,4.00959,1077.1,1077.0,4.00959]
[1610407048916,6.42229,1077.1,1077.0,4.00959]
[1610407051619,6.42229,1077.1,1076.4,59.7943]
[1610407052221,6.42229,1077.1,1075.9,1.5356]
[1610407052619,2.4127,1077.1,1075.6,1.7811]
[1610407052820,2.4127,1077.1,1075.5,65.4534]
[1610407053120,2.4127,1077.1,1076.6,4.00959]
[1610407053922,1.8723,1077.6,1075.8,1.8893]
[1610407054122,1.08957822,1078.0,1076.9,52.0195]
[1610407055021,4.00959,1077.2,1077.0,4.00959]
[1610407055322,1.8931,1077.2,1077.0,4.00959]
[1610407056223,1.8931,1077.2,1076.2,52.9085]
[1610407057223,4.00959,1076.7,1076.2,52.9085]
[1610407057522,2.0057,1076.7,1076.2,52.9085]
[1610407059125,2.0057,1076.7,1076.6,4.00959]
[1610407060329,2.0057,1076.7,1075.8,1.8893]
[1610407060527,2.0057,1076.7,1075.7,71.6902]
[1610407061234,2.0057,1076.7,1076.6,4.00959]
[1610407061433,2.0057,1076.7,1075.7,74.1442]
[1610407062431,1.8931,1077.2,1075.7,74.1442]
[1610407062731,57.29,1077.6,1075.7,74.1442]
[1610407063432,57.29,1077.6,1076.5,4.00959]
[1610407063632,6.0966,1077.9,1076.5,4.00959]
[1610407065437,6.0966,1077.9,1076.9,4.00959]
[1610407065839,6.0966,1077.9,1076.3,1.7584]
[1610407066237,7.6098,1077.9,1076.3,1.7584]
[1610407067239,7.6098,1077.9,1077.1,4.00959]
[1610407068142,7.6098,1077.9,1076.3,1.7584]
[1610407068440,7.6098,1077.9,1076.2,61.1049]
[1610407068839,7.6098,1077.9,1076.0,1.5442]
[1610407069240,7.6098,1077.9,1076.6,4.00959]
[1610407070447,7.6098,1077.9,1076.0,1.7674]
[1610407070843,57.6571,1077.3,1075.0,0.4]
[1610407071247,4.00959,1075.4,1075.2,4.00959]
[1610407071444,59.7373,1077.3,1075.2,4.00959]
[1610407071646,5.9905,1077.2,1075.0,0.4]
[1610407072046,63.8076,1076.8,1075.0,0.4]
[1610407072247,1.9001,1076.8,1075.0,0.4]
[1610407072445,74.4994,1076.7,1075.0,0.4]
[1610407074747,104.4994,1076.7,1075.0,0.4]
[1610407075245,4.00959,1075.1,1075.0,0.4]
[1610407075648,5.80649,1075.1,1075.0,0.4]
[1610407076048,1.7969,1075.1,1075.0,0.4]
[1610407077148,1.6719,1075.4,1075.0,0.4]
[1610407077353,4.00959,1075.2,1075.0,4.40959]
[1610407077548,4.00959,1075.2,1075.0,0.4]
[1610407078651,1.6719,1075.4,1075.0,0.4]
[1610407079351,1.6719,1075.4,1075.3,4.00959]
[1610407079649,4.00959,1076.3,1075.3,4.00959]
[1610407079948,4.00959,1076.3,1075.3,6.47159]
[1610407080349,1.9001,1076.8,1075.3,6.47159]
[1610407080552,1.9001,1076.8,1075.4,7.6995]
[1610407080751,6.0463,1077.2,1075.3,6.47159]
[1610407080950,6.0463,1077.2,1075.4,64.5568]
[1610407081349,4.00959,1076.2,1075.4,64.5568]
[1610407081550,4.00959,1076.2,1075.3,2.462]
[1610407082051,1.8795,1076.8,1075.3,2.462]
[1610407082651,1.8795,1076.8,1075.3,10.6388]
[1610407082852,1.8795,1076.8,1075.3,2.462]
[1610407083053,1.8795,1076.8,1075.5,54.9719]
[1610407083253,4.00959,1077.0,1076.7,4.00959]
[1610407083454,2.0802,1077.3,1076.7,4.00959]
[1610407083654,1.08957822,1078.0,1076.7,4.00959]
[1610407085353,4.00959,1077.5,1077.3,4.00959]
[1610407085652,6.13729,1077.5,1077.3,4.00959]
[1610407086155,2.1277,1077.5,1077.3,4.00959]
[1610407086358,2.1277,1077.5,1077.3,64.24929]
[1610407086756,2.1277,1077.5,1077.3,60.2397]
[1610407087456,2.1277,1077.5,1077.4,4.00959]
[1610407087756,1.08957822,1078.0,1077.4,4.00959]
[1610407088357,1.08957822,1078.0,1077.8,66.8807]
[1610407088959,10.0,1079.0,1077.8,66.8807]
[1610407089158,10.0,1079.0,1077.8,68.5181]
[1610407089358,10.0,1079.0,1078.9,4.00959]
[1610407089860,10.0,1079.0,1078.2,1.6118]
[1610407090357,10.0,1079.0,1078.2,10.532]
[1610407091459,10.0,1079.0,1078.9,4.00959]
[1610407092163,10.0,1079.0,1078.2,10.532]
[1610407092462,10.0,1079.0,1078.2,1.6118]
[1610407093360,4.00959,1078.7,1078.5,4.00959]
[1610407093559,4.00959,1078.7,1078.2,1.6118]
[1610407093761,10.0,1079.0,1077.8,1.6374]
[1610407094164,10.0,1079.0,1077.6,62.3897]
[1610407094661,10.0,1079.0,1067.8,20.40637702]
[1610407094662,10.0,1079.0,1077.1,58.1818]
[1610407095263,10.0,1079.0,1077.2,30.0]
[1610407095464,10.0,1079.0,1078.4,4.00959]
[1610407095863,10.0,1079.0,1077.8,58.9192]
[1610407095864,10.0,1079.0,1077.9,2.1289]
[1610407097365,10.0,1079.0,1078.9,4.00959]
[1610407097666,10.0,1079.0,1078.3,1.8477]
[1610407098467,10.0,1079.0,1077.9,2.1289]
[1610407099467,10.0,1079.0,1078.9,4.00959]
[1610407101168,10.0,1079.0,1078.5,1.9536]
[1610407101371,10.0,1079.0,1078.8,4.00959]
[1610407104671,10.0,1079.0,1078.2,1.822]
[1610407105174,10.0,1079.0,1077.9,2.1289]
[1610407105372,4.00959,1078.0,1077.8,4.00959]
[1610407105871,1.8709,1078.3,1076.8,59.8626]
[1610407106071,1.8709,1078.3,1076.8,61.4097]
[1610407107073,10.0,1079.0,1076.8,61.4097]
[1610407107373,4.00959,1078.7,1078.6,4.00959]
[1610407107573,1.7011,1078.9,1078.6,4.00959]
[1610407107975,1.7011,1078.9,1077.9,1.9411]
[1610407108778,1.7011,1078.9,1076.9,57.4224]
[1610407109480,1.7011,1078.9,1077.4,1.8921]
[1610407111280,1.7011,1078.9,1077.4,73.4968]
[1610407111480,1.7011,1078.9,1078.8,4.00959]
[1610407111682,1.7011,1078.9,1077.8,2.0893]
[1610407112581,2.3418,1078.9,1077.8,2.0893]
[1610407113382,2.3418,1078.9,1078.8,4.00959]
[1610407115386,10.0,1079.0,1078.8,4.00959]
[1610407120192,10.0,1079.0,1078.7,2.2313]
[1610407120392,10.0,1079.0,1078.5,74.5402]
[1610407121492,10.0,1079.0,1078.9,4.00959]
[1610407125402,14.00959,1079.0,1078.9,4.00959]
[1610407126008,10.0,1079.0,1078.9,4.00959]
[1610407140222,1.5992,1079.0,1078.9,4.00959]
[1610407140624,1.07955142,1079.8,1078.9,4.00959]
[1610407141624,1.07955142,1079.8,1079.7,4.00959]
[1610407143732,1.6752,1080.4,1079.7,65.01159]
[1610407144032,6.0842,1082.3,1079.7,67.07199]
[1610407145635,4.00959,1082.0,1081.9,4.00959]
[1610407145835,6.37289,1082.0,1079.7,2.0604]
[1610407146035,6.37289,1082.0,1081.0,69.3257]
[1610407147536,4.00959,1081.7,1081.5,4.00959]
[1610407147936,0.80129,1081.7,1081.5,4.00959]
[1610407151541,4.81088,1081.7,1081.5,4.00959]
[1610407152646,0.80129,1081.7,1081.5,4.00959]
[1610407153045,2.3633,1082.0,1081.5,4.00959]
[1610407153347,1.06952464,1082.5,1081.5,4.00959]
[1610407153549,4.00959,1081.9,1081.5,4.00959]
[1610407154348,6.06549,1081.9,1081.5,4.00959]
[1610407155648,4.00959,1081.6,1080.4,2.2931]
[1610407155849,5.78819,1081.6,1080.3,55.1079]
[1610407156949,5.78819,1081.6,1079.7,2.0604]
[1610407157252,5.78819,1081.6,1079.1,66.7529]
[1610407157752,1.7786,1081.6,1080.7,4.00959]
[1610407158554,1.7786,1081.6,1079.9,70.576]
[1610407159757,6.33329,1080.9,1079.8,2.2688]
[1610407160157,6.33329,1080.9,1079.5,2.3535]
[1610407160359,2.3237,1080.9,1079.5,2.3535]
[1610407160958,2.3237,1080.9,1079.0,72.977]
[1610407161660,4.00959,1079.7,1079.6,4.00959]
[1610407161960,2.1474,1079.9,1079.6,4.00959]
[1610407162862,58.2217,1080.9,1079.6,4.00959]
[1610407163661,4.00959,1080.7,1080.5,4.00959]
[1610407163961,4.00959,1080.7,1079.5,1.7233]
[1610407165865,6.2653,1081.4,1080.4,4.00959]
[1610407166265,12.6001,1082.2,1080.4,4.00959]
[1610407167766,12.6001,1082.2,1079.9,60.3733]
[1610407168071,15.002,1082.2,1079.9,60.3733]
[1610407169669,4.00959,1080.8,1080.6,4.00959]
[1610407170170,1.5696,1081.4,1080.6,4.00959]
[1610407170469,1.8479,1080.8,1080.6,4.00959]
[1610407170970,1.8479,1080.8,1079.9,60.3733]
[1610407171770,1.8479,1080.8,1080.6,4.00959]
[1610407175375,15.002,1082.2,1080.6,4.00959]
[1610407175777,15.002,1082.2,1081.3,4.00959]
[1610407176375,15.002,1082.2,1080.6,55.0034]
[1610407176577,15.002,1082.2,1079.8,1.9312]
[1610407176777,15.002,1082.2,1079.5,1.7233]
[1610407176778,90.3184,1082.2,1079.5,1.7233]
[1610407176978,90.3184,1082.2,1079.3,53.9102]
[1610407177777,15.002,1082.2,1081.4,4.00959]
[1610407178076,2.4019,1082.2,1081.4,4.00959]
[1610407178280,97.79999864,1082.7,1081.4,4.00959]
[1610407178478,6.3002,1082.6,1081.4,4.00959]
[1610407179677,6.3002,1082.6,1080.8,64.7567]
[1610407179678,6.3002,1082.6,1081.6,4.00959]
[1610407181180,97.70092217,1083.4,1081.6,71.50649]
[1610407181380,6.112,1083.7,1081.6,71.50649]
[1610407181780,4.00959,1083.3,1082.4,4.00959]
[1610407182780,6.112,1083.7,1082.4,4.00959]
[1610407183683,4.00959,1083.5,1082.4,4.00959]
[1610407185882,4.00959,1083.3,1082.4,4.00959]
[1610407186483,5.9462,1083.6,1082.4,4.00959]
[1610407186682,6.112,1083.7,1082.4,4.00959]
[1610407187584,12.7371,1084.6,1082.4,4.00959]
[1610407187785,4.00959,1083.8,1082.4,4.00959]
[1610407188986,12.7371,1084.6,1082.4,4.00959]
[1610407189488,12.7371,1084.6,1082.5,65.0062]
[1610407189788,12.7371,1084.6,1084.2,4.00959]
[1610407189987,12.7371,1084.6,1081.4,30.0]
[1610407190287,14.9598,1084.6,1083.3,72.271]
[1610407190887,2.2227,1084.6,1083.3,72.271]
[1610407191387,2.2227,1084.6,1083.3,63.8897]
[1610407191987,4.00959,1084.2,1083.3,63.8897]
[1610407192187,5.98479,1084.2,1083.3,63.8897]
[1610407192387,1.9752,1084.2,1083.3,63.8897]
[1610407193791,1.9752,1084.2,1084.1,4.00959]
[1610407194088,1.9752,1084.2,1083.3,63.8897]
[1610407196492,1.9752,1084.2,1084.0,0.8]
[1610407197091,2.2227,1084.6,1084.0,0.8]
[1610407197295,1.05949784,1085.2,1084.0,0.8]
[1610407198095,3.14749784,1085.2,1084.3,61.1116]
[1610407199800,4.00959,1085.0,1084.4,4.00959]
[1610407201507,4.00959,1085.0,1084.0,0.8]
[1610407201806,4.00959,1084.3,1084.0,4.80959]
[1610407202005,5.91639,1084.3,1084.0,4.80959]
[1610407202408,1.9068,1084.3,1084.0,4.80959]
[1610407203811,4.00959,1084.1,1084.0,0.8]
[1610407204211,1.9068,1084.3,1084.0,0.8]
[1610407205612,1.9068,1084.3,1081.8,69.7991]
[1610407205814,4.00959,1082.5,1082.1,4.00959]
[1610407206313,4.00959,1082.5,1081.3,2.0293]
[1610407206516,4.00959,1082.5,1081.2,54.6719]
[1610407206714,4.00959,1082.5,1079.0,74.5683]
[1610407207015,6.0433,1082.4,1079.0,76.7586]
[1610407207916,4.00959,1080.3,1079.7,4.00959]
[1610407208414,4.00959,1080.3,1079.0,2.1903]
[1610407209917,1.9878,1080.2,1079.7,4.00959]
[1610407210617,71.4236,1082.5,1079.7,36.16249]
[1610407210818,12.5431,1082.5,1079.7,36.16249]
[1610407211020,6.463,1082.5,1080.1,76.4947]
[1610407211427,6.463,1082.5,1080.1,78.5299]
[1610407211619,6.463,1082.5,1080.1,108.5299]
[1610407211819,4.00959,1082.5,1082.3,4.00959]
[1610407212322,4.00959,1082.5,1081.3,76.4168]
[1610407213920,4.00959,1082.1,1081.8,4.00959]
[1610407214120,5.82689,1082.1,1081.8,4.00959]
[1610407214321,1.8173,1082.1,1081.8,4.00959]
[1610407215221,6.3143,1083.6,1081.8,6.43399]
[1610407215420,61.1503,1083.5,1081.8,2.4244]
[1610407215621,62.8108,1083.5,1081.8,2.4244]
[1610407215822,4.00959,1081.9,1081.8,2.4244]
[1610407216021,5.69109,1081.9,1081.8,2.4244]
[1610407216221,5.69109,1081.9,1081.0,4.00959]
[1610407216522,1.6815,1081.9,1081.0,4.00959]
[1610407217021,1.8313,1082.3,1081.0,4.00959]
[1610407217824,4.00959,1081.8,1081.0,4.00959]
[1610407218322,5.69059,1081.8,1080.5,71.3075]
[1610407219323,1.681,1081.8,1080.5,71.3075]
[1610407219824,1.681,1081.8,1081.7,4.00959]
[1610407220025,1.681,1081.8,1080.5,71.3075]
[1610407220224,1.681,1081.8,1080.7,2.0072]
[1610407221428,1.681,1081.8,1080.5,71.3075]
[1610407222028,1.681,1081.8,1081.6,4.00959]
[1610407223230,1.8313,1082.3,1081.6,4.00959]
[1610407223733,11.8861,1083.4,1081.6,4.00959]
[1610407223931,11.8861,1083.4,1082.9,4.00959]
[1610407224130,11.8861,1083.4,1081.1,67.0395]
[1610407225336,11.8861,1083.4,1081.1,97.0395]
[1610407225535,70.2803,1084.0,1081.1,97.0395]
[1610407225734,70.2803,1084.0,1081.2,30.0]
[1610407225937,4.00959,1083.1,1082.8,4.00959]
[1610407226136,5.82369,1083.1,1081.7,68.3637]
[1610407227737,1.8141,1083.1,1081.7,68.3637]
[1610407228337,4.00959,1082.3,1082.0,4.00959]
[1610407228536,5.73669,1082.3,1081.7,68.3637]
[1610407229538,1.7271,1082.3,1081.7,68.3637]
[1610407230339,4.00959,1081.8,1081.7,68.3637]
[1610407230638,1.7271,1082.3,1081.7,68.3637]
[1610407230839,2.1026,1081.8,1081.7,68.3637]
[1610407232039,2.3214,1082.0,1081.7,68.3637]
[1610407234040,2.3214,1082.0,1081.0,2.042]
[1610407234441,4.00959,1081.3,1081.2,4.00959]
[1610407234641,4.00959,1081.3,1080.1,2.0352]
[1610407234841,4.00959,1081.3,1080.0,72.8198]
[1610407235146,4.00959,1081.3,1079.9,3.402]
[1610407235544,4.00959,1081.3,1077.2,10.258]
[1610407235743,4.00959,1081.3,1078.4,30.0]
[1610407236244,4.00959,1081.3,1077.3,5.5597]
[1610407236245,6.2182,1081.2,1078.3,58.2102]
[1610407236544,6.46609,1080.1,1079.8,4.00959]
[1610407236744,6.46609,1080.1,1078.3,58.2102]
[1610407237044,2.4565,1080.1,1078.3,88.2102]
[1610407238045,2.4565,1080.1,1078.3,58.2102]
[1610407238344,4.00959,1079.9,1079.6,4.00959]
[1610407238845,4.00959,1079.9,1078.3,58.2102]
[1610407239043,4.00959,1079.9,1077.9,30.0]